[Event "*** SCC Grand Prix: Titled Tuesday Blitz"]
[Site "Chess.com"]
[Date "2020.10.13"]
[Round "2"]
[White "Shubinkirill2003"]
[Black "Manukyan_Artak"]
[Result "1-0"]
[WhiteElo "2658"]
[BlackElo "2316"]
[TimeControl "180+1"]
[EndTime "10:15:17 PDT"]
[Termination "Shubinkirill2003 won by resignation"]

1. e4 {[%clk 0:03:00.8]} 1... c6 {[%clk 0:02:58.9]} 2. d4 {[%clk 0:03:00.5]}
2... d5 {[%clk 0:02:59.8]} 3. exd5 {[%clk 0:03:01.4]} 3... cxd5 {[%clk
0:02:59.8]} 4. Bd3 {[%clk 0:03:02.3]} 4... Nc6 {[%clk 0:02:58.7]} 5. c3 {[%clk
0:03:02.5]} 5... e5 {[%clk 0:02:59]} 6. dxe5 {[%clk 0:03:01.6]} 6... Nxe5 {[%clk
0:02:59.9]} 7. Nf3 {[%clk 0:03:01.7]} 7... Nxd3+ {[%clk 0:02:58.6]} 8. Qxd3
{[%clk 0:03:01.7]} 8... Nf6 {[%clk 0:02:55.2]} 9. O-O {[%clk 0:03:01.2]} 9...
Be7 {[%clk 0:02:55]} 10. Nbd2 {[%clk 0:03:00.1]} 10... O-O {[%clk 0:02:54.9]}
11. Nb3 {[%clk 0:03:00]} 11... h6 {[%clk 0:02:48.9]} 12. Bf4 {[%clk 0:02:58.2]}
12... Bg4 {[%clk 0:02:34.7]} 13. Ne5 {[%clk 0:02:50.3]} 13... Be6 {[%clk
0:02:31.2]} 14. Rad1 {[%clk 0:02:49.4]} 14... Qb6 {[%clk 0:02:20.7]} 15. Rfe1
{[%clk 0:02:24.3]} 15... a5 {[%clk 0:02:09.6]} 16. Qd4 {[%clk 0:02:17]} 16...
Qb5 {[%clk 0:01:56.7]} 17. Qd3 {[%clk 0:02:15]} 17... Qb6 {[%clk 0:01:54.1]} 18.
Nd4 {[%clk 0:02:06.9]} 18... Rfe8 {[%clk 0:01:21.1]} 19. Nxe6 {[%clk 0:01:56.7]}
19... fxe6 {[%clk 0:01:18.3]} 20. Qg6 {[%clk 0:01:53]} 20... Bc5 {[%clk
0:01:08.5]} 21. Qf7+ {[%clk 0:01:31.9]} 21... Kh7 {[%clk 0:01:05.1]} 22. Bxh6
{[%clk 0:01:31.6]} 22... Bxf2+ {[%clk 0:00:58.3]} 23. Kh1 {[%clk 0:01:30.8]}
23... Nh5 {[%clk 0:00:33.3]} 24. Qxh5 {[%clk 0:01:27.7]} 24... Bxe1 {[%clk
0:00:33.3]} 25. Qg6+ {[%clk 0:01:27.2]} 1-0

[Event "*** SCC Grand Prix: Titled Tuesday Blitz"]
[Site "Chess.com"]
[Date "2020.10.13"]
[Round "2"]
[White "Denis_Makhnyov"]
[Black "MVM2008"]
[Result "1-0"]
[WhiteElo "2883"]
[BlackElo "2167"]
[TimeControl "180+1"]
[EndTime "10:15:18 PDT"]
[Termination "Denis_Makhnyov won on time"]

1. d4 {[%clk 0:03:00.9]} 1... Nf6 {[%clk 0:03:00]} 2. c4 {[%clk 0:03:01.5]} 2...
g6 {[%clk 0:02:59.9]} 3. g3 {[%clk 0:03:02.1]} 3... c5 {[%clk 0:02:58.7]} 4. d5
{[%clk 0:03:02]} 4... Bg7 {[%clk 0:02:58.9]} 5. Nc3 {[%clk 0:03:01.7]} 5... O-O
{[%clk 0:02:59.1]} 6. Bg2 {[%clk 0:03:02.4]} 6... d6 {[%clk 0:02:59.3]} 7. Nf3
{[%clk 0:03:03]} 7... Bg4 {[%clk 0:02:50.8]} 8. O-O {[%clk 0:03:01.9]} 8... Bxf3
{[%clk 0:02:50.4]} 9. exf3 {[%clk 0:03:00.9]} 9... Nbd7 {[%clk 0:02:48.4]} 10.
f4 {[%clk 0:03:01]} 10... a6 {[%clk 0:02:47.9]} 11. a4 {[%clk 0:03:00.7]} 11...
Rb8 {[%clk 0:02:45.4]} 12. Re1 {[%clk 0:03:00.1]} 12... Re8 {[%clk 0:02:29.2]}
13. Qd3 {[%clk 0:02:57]} 13... Qa5 {[%clk 0:02:23.6]} 14. Bd2 {[%clk 0:02:56.9]}
14... Qb6 {[%clk 0:02:22.9]} 15. a5 {[%clk 0:02:56.5]} 15... Qc7 {[%clk
0:02:14.5]} 16. Qc2 {[%clk 0:02:56.3]} 16... Kh8 {[%clk 0:01:24.9]} 17. Re2
{[%clk 0:02:50.8]} 17... Nf8 {[%clk 0:01:15.7]} 18. Bf3 {[%clk 0:02:49.9]} 18...
N6d7 {[%clk 0:01:04.5]} 19. Kg2 {[%clk 0:02:47.5]} 19... Nf6 {[%clk 0:01:01.2]}
20. Na4 {[%clk 0:02:42]} 20... N6d7 {[%clk 0:01:00.4]} 21. Rae1 {[%clk
0:02:41.9]} 21... b5 {[%clk 0:00:40.2]} 22. axb6 {[%clk 0:02:41.7]} 22... Qd8
{[%clk 0:00:22]} 23. Ba5 {[%clk 0:02:41.1]} 23... Rb7 {[%clk 0:00:21.5]} 24. b4
{[%clk 0:02:39.4]} 24... cxb4 {[%clk 0:00:20.6]} 25. c5 {[%clk 0:02:39.9]} 25...
dxc5 {[%clk 0:00:16.9]} 26. d6 {[%clk 0:02:39.9]} 26... Nxb6 {[%clk 0:00:08.4]}
27. Nxb6 {[%clk 0:02:33.5]} 27... Rxb6 {[%clk 0:00:08.3]} 28. dxe7 {[%clk
0:02:33.6]} 28... Qd6 {[%clk 0:00:02.6]} 29. exf8=Q+ {[%clk 0:02:32]} 29... Rxf8
{[%clk 0:00:03.5]} 30. Bxb6 {[%clk 0:02:32.6]} 30... Qxb6 {[%clk 0:00:04.1]} 31.
Bd5 {[%clk 0:02:29.9]} 31... a5 {[%clk 0:00:03.4]} 32. Re8 {[%clk 0:02:29.5]}
32... a4 {[%clk 0:00:01.8]} 33. Qxa4 {[%clk 0:02:28.9]} 33... c4 {[%clk
0:00:01.3]} 34. Rxf8+ {[%clk 0:02:27.4]} 34... Bxf8 {[%clk 0:00:01.5]} 35. Qe8
{[%clk 0:02:26.8]} 35... Kg7 {[%clk 0:00:01.2]} 36. Qxf7+ {[%clk 0:02:25.6]}
36... Kh6 {[%clk 0:00:01.4]} 37. Qxf8+ {[%clk 0:02:26]} 1-0

[Event "*** SCC Grand Prix: Titled Tuesday Blitz"]
[Site "Chess.com"]
[Date "2020.10.13"]
[Round "2"]
[White "mitrabhaa"]
[Black "Al_Shima"]
[Result "1-0"]
[WhiteElo "2675"]
[BlackElo "2349"]
[TimeControl "180+1"]
[EndTime "10:15:22 PDT"]
[Termination "mitrabhaa won by resignation"]

1. Nf3 {[%clk 0:03:00.9]} 1... Nf6 {[%clk 0:02:59]} 2. c4 {[%clk 0:02:57.2]}
2... c6 {[%clk 0:02:56.3]} 3. e3 {[%clk 0:02:55.8]} 3... d5 {[%clk 0:02:56.1]}
4. d4 {[%clk 0:02:54.8]} 4... g6 {[%clk 0:02:55.9]} 5. Nc3 {[%clk 0:02:51.8]}
5... Bg7 {[%clk 0:02:55.5]} 6. h3 {[%clk 0:02:51]} 6... O-O {[%clk 0:02:55.2]}
7. Be2 {[%clk 0:02:50.7]} 7... a6 {[%clk 0:02:54.8]} 8. a4 {[%clk 0:02:47]} 8...
Ne4 {[%clk 0:02:49.1]} 9. O-O {[%clk 0:02:45.7]} 9... Nxc3 {[%clk 0:02:47.1]}
10. bxc3 {[%clk 0:02:46.6]} 10... dxc4 {[%clk 0:02:41.8]} 11. Bxc4 {[%clk
0:02:45]} 11... Nd7 {[%clk 0:02:39.3]} 12. a5 {[%clk 0:02:43.8]} 12... e5 {[%clk
0:02:35.7]} 13. Ba3 {[%clk 0:02:42.6]} 13... Re8 {[%clk 0:02:35.2]} 14. Qb3
{[%clk 0:02:41.8]} 14... Qf6 {[%clk 0:02:32.5]} 15. Rfd1 {[%clk 0:02:39.3]}
15... e4 {[%clk 0:02:31.2]} 16. Nd2 {[%clk 0:02:38]} 16... Nf8 {[%clk
0:02:26.7]} 17. Rab1 {[%clk 0:02:34.1]} 17... Qg5 {[%clk 0:02:25.7]} 18. Bxf7+
{[%clk 0:02:32.8]} 18... Kh8 {[%clk 0:02:25.5]} 19. Bxe8 {[%clk 0:02:32]} 19...
Bxh3 {[%clk 0:02:25.1]} 20. g3 {[%clk 0:02:32.2]} 20... Rxe8 {[%clk 0:02:23.8]}
21. Qf7 {[%clk 0:02:31.5]} 21... Rb8 {[%clk 0:02:06.5]} 22. Nxe4 {[%clk
0:02:15.3]} 22... Qxa5 {[%clk 0:02:03.4]} 23. Bd6 {[%clk 0:02:10]} 23... Be6
{[%clk 0:02:01.5]} 24. Qf4 {[%clk 0:02:06.9]} 24... Re8 {[%clk 0:01:58.6]} 25.
Rxb7 {[%clk 0:02:05]} 25... Bf5 {[%clk 0:01:50.5]} 26. Ng5 {[%clk 0:01:44.6]}
26... Kg8 {[%clk 0:01:34.3]} 27. g4 {[%clk 0:01:42.1]} 27... h6 {[%clk 0:01:31]}
28. gxf5 {[%clk 0:01:35.7]} 28... hxg5 {[%clk 0:01:30.5]} 29. Qxg5 {[%clk
0:01:35.5]} 29... Qd5 {[%clk 0:00:56.6]} 30. Bxf8 {[%clk 0:01:30.5]} 30... Kxf8
{[%clk 0:00:51.8]} 31. Qxg6 {[%clk 0:01:23.1]} 1-0

[Event "*** SCC Grand Prix: Titled Tuesday Blitz"]
[Site "Chess.com"]
[Date "2020.10.13"]
[Round "2"]
[White "Eliwood44"]
[Black "parintele_chess"]
[Result "1-0"]
[WhiteElo "2392"]
[BlackElo "2130"]
[TimeControl "180+1"]
[EndTime "10:15:22 PDT"]
[Termination "Eliwood44 won by resignation"]

1. d4 {[%clk 0:03:00.9]} 1... Nf6 {[%clk 0:02:59.3]} 2. Nf3 {[%clk 0:03:00.6]}
2... d5 {[%clk 0:02:58.9]} 3. c4 {[%clk 0:03:00.4]} 3... e6 {[%clk 0:02:58.5]}
4. Nc3 {[%clk 0:02:58.5]} 4... Bb4 {[%clk 0:02:58.4]} 5. cxd5 {[%clk 0:02:57.9]}
5... exd5 {[%clk 0:02:59.3]} 6. Bg5 {[%clk 0:02:57]} 6... h6 {[%clk 0:02:59.3]}
7. Bxf6 {[%clk 0:02:57]} 7... Qxf6 {[%clk 0:03:00.2]} 8. Qa4+ {[%clk 0:02:57.2]}
8... Nc6 {[%clk 0:03:00.3]} 9. e3 {[%clk 0:02:56.8]} 9... O-O {[%clk 0:02:57.1]}
10. Be2 {[%clk 0:02:56.8]} 10... Bxc3+ {[%clk 0:02:35.7]} 11. bxc3 {[%clk
0:02:56.2]} 11... Bf5 {[%clk 0:02:34.2]} 12. O-O {[%clk 0:02:55.8]} 12... Be4
{[%clk 0:02:33.4]} 13. Rfc1 {[%clk 0:02:53.8]} 13... Ne7 {[%clk 0:02:31]} 14. c4
{[%clk 0:02:49.6]} 14... c6 {[%clk 0:02:30.5]} 15. Ne5 {[%clk 0:02:46.4]} 15...
Ng6 {[%clk 0:02:26.5]} 16. Nd7 {[%clk 0:02:41.6]} 16... Qg5 {[%clk 0:02:24.9]}
17. g3 {[%clk 0:02:31.4]} 17... Rfd8 {[%clk 0:02:14.9]} 18. Nc5 {[%clk
0:02:25.2]} 18... b6 {[%clk 0:01:58.2]} 19. Nxe4 {[%clk 0:02:14.3]} 19... dxe4
{[%clk 0:01:59.1]} 20. Qxc6 {[%clk 0:02:05]} 20... f5 {[%clk 0:01:58.9]} 21. Bf1
{[%clk 0:01:56.3]} 21... Nh4 {[%clk 0:01:53.6]} 22. Bg2 {[%clk 0:01:50.8]} 22...
Nxg2 {[%clk 0:01:49.1]} 23. Kxg2 {[%clk 0:01:51.7]} 23... Qg4 {[%clk 0:01:48.2]}
24. c5 {[%clk 0:01:48.2]} 24... Qf3+ {[%clk 0:01:46.3]} 25. Kg1 {[%clk
0:01:48.2]} 25... bxc5 {[%clk 0:01:46.2]} 26. Rxc5 {[%clk 0:01:47.5]} 26... Rab8
{[%clk 0:01:38.1]} 27. Qe6+ {[%clk 0:01:43.5]} 27... Kh8 {[%clk 0:01:36.6]} 28.
Rxf5 {[%clk 0:01:37.6]} 28... Qe2 {[%clk 0:01:36.4]} 29. Qxe4 {[%clk 0:01:34.6]}
29... Rb2 {[%clk 0:01:31.5]} 30. Qf3 {[%clk 0:01:29.4]} 30... Qd2 {[%clk
0:01:17.3]} 31. Rf8+ {[%clk 0:01:24.3]} 31... Rxf8 {[%clk 0:01:17.2]} 32. Qxf8+
{[%clk 0:01:25.2]} 32... Kh7 {[%clk 0:01:17.9]} 33. Qf5+ {[%clk 0:01:25]} 33...
Kg8 {[%clk 0:01:17.7]} 34. h4 {[%clk 0:01:16]} 34... Rxa2 {[%clk 0:01:09.8]} 35.
Qe6+ {[%clk 0:01:14.6]} 1-0

[Event "*** SCC Grand Prix: Titled Tuesday Blitz"]
[Site "Chess.com"]
[Date "2020.10.13"]
[Round "2"]
[White "Hikaru"]
[Black "Aygehovit1992"]
[Result "1-0"]
[WhiteElo "3210"]
[BlackElo "2622"]
[TimeControl "180+1"]
[EndTime "10:15:28 PDT"]
[Termination "Hikaru won by resignation"]

1. e4 {[%clk 0:03:00.9]} 1... d6 {[%clk 0:02:58.5]} 2. d4 {[%clk 0:03:01.1]}
2... Nf6 {[%clk 0:02:58.6]} 3. Nc3 {[%clk 0:03:01]} 3... g6 {[%clk 0:02:59.1]}
4. f4 {[%clk 0:03:01.2]} 4... Bg7 {[%clk 0:02:59.1]} 5. Nf3 {[%clk 0:03:01.9]}
5... O-O {[%clk 0:02:59.4]} 6. e5 {[%clk 0:03:02.7]} 6... dxe5 {[%clk
0:02:59.4]} 7. fxe5 {[%clk 0:03:03.6]} 7... Nd5 {[%clk 0:02:59.3]} 8. Bc4 {[%clk
0:03:04.3]} 8... Nb6 {[%clk 0:02:59.5]} 9. Bd3 {[%clk 0:03:00]} 9... Nc6 {[%clk
0:02:58.3]} 10. Be4 {[%clk 0:02:57.5]} 10... Bg4 {[%clk 0:02:55.4]} 11. Ne2
{[%clk 0:02:57.7]} 11... f5 {[%clk 0:02:53]} 12. Bxc6 {[%clk 0:02:57.5]} 12...
bxc6 {[%clk 0:02:52.9]} 13. O-O {[%clk 0:02:58.2]} 13... Bxf3 {[%clk 0:02:44.4]}
14. gxf3 {[%clk 0:02:58.3]} 14... c5 {[%clk 0:02:25]} 15. dxc5 {[%clk
0:02:53.4]} 15... Qxd1 {[%clk 0:01:43.4]} 16. Rxd1 {[%clk 0:02:54.3]} 16... Nc4
{[%clk 0:01:44.3]} 17. f4 {[%clk 0:02:39.7]} 17... Rfd8 {[%clk 0:01:42.9]} 18.
Rd3 {[%clk 0:02:35.3]} 18... e6 {[%clk 0:01:14.4]} 19. b3 {[%clk 0:02:34.8]}
19... Na5 {[%clk 0:01:12.4]} 20. Be3 {[%clk 0:02:31.7]} 20... Rxd3 {[%clk
0:01:08.4]} 21. cxd3 {[%clk 0:02:31.9]} 21... Rd8 {[%clk 0:01:08.9]} 22. d4
{[%clk 0:02:32.1]} 22... Nc6 {[%clk 0:01:06.4]} 23. a3 {[%clk 0:02:29.4]} 23...
Ne7 {[%clk 0:01:05.9]} 24. Nc3 {[%clk 0:02:29.5]} 24... c6 {[%clk 0:00:53.4]}
25. b4 {[%clk 0:02:29.3]} 25... a6 {[%clk 0:00:52.3]} 26. a4 {[%clk 0:02:29.4]}
26... Rb8 {[%clk 0:00:51.2]} 27. Rb1 {[%clk 0:02:29.6]} 27... Nd5 {[%clk
0:00:44.5]} 28. Nxd5 {[%clk 0:02:22.9]} 28... exd5 {[%clk 0:00:45.4]} 29. b5
{[%clk 0:02:20]} 29... Kf7 {[%clk 0:00:39.6]} 30. b6 {[%clk 0:01:56.3]} 30...
Ke6 {[%clk 0:00:39.4]} 31. Kf2 {[%clk 0:01:53.8]} 31... Kd7 {[%clk 0:00:38.7]}
32. h4 {[%clk 0:01:52.6]} 32... Bf8 {[%clk 0:00:19.2]} 33. h5 {[%clk 0:01:50.9]}
33... Be7 {[%clk 0:00:17.1]} 34. hxg6 {[%clk 0:01:50.9]} 34... hxg6 {[%clk
0:00:18]} 35. Rh1 {[%clk 0:01:51.2]} 1-0

[Event "*** SCC Grand Prix: Titled Tuesday Blitz"]
[Site "Chess.com"]
[Date "2020.10.13"]
[Round "2"]
[White "Harsha_Bharathakoti"]
[Black "elisak43"]
[Result "1-0"]
[WhiteElo "2756"]
[BlackElo "2512"]
[TimeControl "180+1"]
[EndTime "10:15:35 PDT"]
[Termination "Harsha_Bharathakoti won by resignation"]

1. d4 {[%clk 0:02:55.2]} 1... f5 {[%clk 0:02:58.2]} 2. c4 {[%clk 0:02:48.1]}
2... Nf6 {[%clk 0:02:58.5]} 3. Nc3 {[%clk 0:02:47.8]} 3... g6 {[%clk 0:02:58.7]}
4. Bg5 {[%clk 0:02:44.6]} 4... Bg7 {[%clk 0:02:58.8]} 5. h4 {[%clk 0:02:36.8]}
5... O-O {[%clk 0:02:53]} 6. e3 {[%clk 0:02:29.7]} 6... d6 {[%clk 0:02:48]} 7.
Qc2 {[%clk 0:02:25]} 7... h6 {[%clk 0:02:46.2]} 8. Bxf6 {[%clk 0:02:24.1]} 8...
Bxf6 {[%clk 0:02:47.1]} 9. O-O-O {[%clk 0:02:21.3]} 9... c6 {[%clk 0:02:40.8]}
10. g4 {[%clk 0:02:21.2]} 10... Bg7 {[%clk 0:02:22.4]} 11. gxf5 {[%clk
0:02:11.7]} 11... Bxf5 {[%clk 0:02:19.2]} 12. Bd3 {[%clk 0:02:11.9]} 12... Qa5
{[%clk 0:02:01.3]} 13. Nge2 {[%clk 0:01:41.8]} 13... Bxd3 {[%clk 0:01:56]} 14.
Qxd3 {[%clk 0:01:42.7]} 14... Qf5 {[%clk 0:01:52]} 15. Qxf5 {[%clk 0:01:22.7]}
15... Rxf5 {[%clk 0:01:47.8]} 16. Rdg1 {[%clk 0:01:22.3]} 16... Kh7 {[%clk
0:01:42]} 17. f4 {[%clk 0:01:11.2]} 17... Nd7 {[%clk 0:01:17.3]} 18. Ng3 {[%clk
0:01:09]} 18... Rf7 {[%clk 0:01:16.5]} 19. h5 {[%clk 0:01:09.4]} 19... gxh5
{[%clk 0:00:53.4]} 20. Nxh5 {[%clk 0:01:07.1]} 20... e5 {[%clk 0:00:51.3]} 21.
dxe5 {[%clk 0:00:59.8]} 21... dxe5 {[%clk 0:00:51.5]} 22. f5 {[%clk 0:01:00.4]}
22... Nf6 {[%clk 0:00:45.6]} 23. Rxg7+ {[%clk 0:00:47.1]} 1-0

[Event "*** SCC Grand Prix: Titled Tuesday Blitz"]
[Site "Chess.com"]
[Date "2020.10.13"]
[Round "2"]
[White "Shivagami"]
[Black "Semen16"]
[Result "0-1"]
[WhiteElo "2237"]
[BlackElo "2453"]
[TimeControl "180+1"]
[EndTime "10:15:43 PDT"]
[Termination "Semen16 won by resignation"]

1. d4 {[%clk 0:02:54.4]} 1... d5 {[%clk 0:02:59.5]} 2. c4 {[%clk 0:02:52]} 2...
dxc4 {[%clk 0:02:59.8]} 3. e4 {[%clk 0:02:50.3]} 3... e5 {[%clk 0:02:57]} 4. d5
{[%clk 0:02:47.9]} 4... Nf6 {[%clk 0:02:56.5]} 5. Nc3 {[%clk 0:02:46.9]} 5... b5
{[%clk 0:02:55.9]} 6. f3 {[%clk 0:02:21.5]} 6... b4 {[%clk 0:02:39.8]} 7. Na4
{[%clk 0:01:54.6]} 7... Ba6 {[%clk 0:02:35.8]} 8. Qc2 {[%clk 0:01:46.2]} 8...
Qd7 {[%clk 0:02:26.8]} 9. Bd2 {[%clk 0:01:35.9]} 9... c6 {[%clk 0:02:21]} 10.
Bxc4 {[%clk 0:01:00.4]} 10... cxd5 {[%clk 0:02:11.4]} 11. exd5 {[%clk
0:00:50.8]} 11... Be7 {[%clk 0:01:57.2]} 12. b3 {[%clk 0:00:42.5]} 12... O-O
{[%clk 0:01:51.8]} 13. Ne2 {[%clk 0:00:41.4]} 13... Nxd5 {[%clk 0:01:50.7]} 14.
O-O {[%clk 0:00:39.2]} 14... Bxc4 {[%clk 0:01:42.8]} 15. Qxc4 {[%clk 0:00:32]}
15... Rc8 {[%clk 0:01:41.8]} 16. Qe4 {[%clk 0:00:28.5]} 16... Nc6 {[%clk
0:01:40.6]} 17. Rfd1 {[%clk 0:00:25.4]} 17... f5 {[%clk 0:01:38.8]} 18. Qd3
{[%clk 0:00:20]} 18... Qe6 {[%clk 0:01:36.3]} 19. Ng3 {[%clk 0:00:15.3]} 19...
g6 {[%clk 0:01:32.3]} 20. Bh6 {[%clk 0:00:13.2]} 20... Nd4 {[%clk 0:01:26.9]}
21. Be3 {[%clk 0:00:10.7]} 21... Nxe3 {[%clk 0:01:19.8]} 22. Qxe3 {[%clk
0:00:08.7]} 22... Nc2 {[%clk 0:01:19.6]} 0-1

[Event "*** SCC Grand Prix: Titled Tuesday Blitz"]
[Site "Chess.com"]
[Date "2020.10.13"]
[Round "2"]
[White "IMDT02"]
[Black "tptagain"]
[Result "0-1"]
[WhiteElo "2569"]
[BlackElo "2868"]
[TimeControl "180+1"]
[EndTime "10:15:45 PDT"]
[Termination "tptagain won by resignation"]

1. e4 {[%clk 0:03:00.9]} 1... c6 {[%clk 0:02:57.4]} 2. d4 {[%clk 0:03:00.2]}
2... d5 {[%clk 0:02:57.7]} 3. e5 {[%clk 0:03:00.2]} 3... Bf5 {[%clk 0:02:58]} 4.
Nf3 {[%clk 0:02:58.9]} 4... e6 {[%clk 0:02:58.1]} 5. Be2 {[%clk 0:02:58.6]} 5...
Ne7 {[%clk 0:02:56.6]} 6. O-O {[%clk 0:02:55]} 6... Bg6 {[%clk 0:02:55.3]} 7. c3
{[%clk 0:02:49.4]} 7... Nf5 {[%clk 0:02:54.1]} 8. Nbd2 {[%clk 0:02:44.9]} 8...
c5 {[%clk 0:02:52.4]} 9. dxc5 {[%clk 0:02:24.7]} 9... Bxc5 {[%clk 0:02:50.7]}
10. Nb3 {[%clk 0:02:24.1]} 10... Bb6 {[%clk 0:02:49]} 11. a4 {[%clk 0:02:21.7]}
11... a6 {[%clk 0:02:49.1]} 12. a5 {[%clk 0:02:19]} 12... Ba7 {[%clk 0:02:49.2]}
13. Nbd4 {[%clk 0:02:19.5]} 13... Nc6 {[%clk 0:02:38.9]} 14. Nxc6 {[%clk
0:02:12.8]} 14... bxc6 {[%clk 0:02:39]} 15. Bxa6 {[%clk 0:02:13]} 15... Bxf2+
{[%clk 0:02:36.1]} 16. Rxf2 {[%clk 0:02:10.3]} 16... Rxa6 {[%clk 0:02:36.7]} 17.
b4 {[%clk 0:02:04]} 17... O-O {[%clk 0:02:36.4]} 18. Nd4 {[%clk 0:02:00.4]}
18... c5 {[%clk 0:02:29.9]} 19. b5 {[%clk 0:01:43.7]} 19... Rxa5 {[%clk
0:02:21.4]} 20. Nc6 {[%clk 0:01:38.9]} 20... Rxa1 {[%clk 0:02:21.2]} 21. Nxd8
{[%clk 0:01:39.3]} 21... Rxd8 {[%clk 0:02:21.9]} 22. Rf1 {[%clk 0:01:22.5]}
22... Ne3 {[%clk 0:02:05.5]} 23. Bxe3 {[%clk 0:01:21]} 23... Rxd1 {[%clk
0:02:05.8]} 24. Rxd1 {[%clk 0:01:21.9]} 24... Rb8 {[%clk 0:02:06.1]} 25. Ra1
{[%clk 0:01:02.6]} 25... h5 {[%clk 0:02:01.6]} 26. Ra5 {[%clk 0:01:00.2]} 26...
Bd3 {[%clk 0:01:57.6]} 27. Bxc5 {[%clk 0:01:00.2]} 27... Bxb5 {[%clk 0:01:57.9]}
28. Bd6 {[%clk 0:00:51.2]} 28... Rb7 {[%clk 0:01:58]} 29. Ra8+ {[%clk
0:00:50.9]} 29... Kh7 {[%clk 0:01:57.7]} 30. Rb8 {[%clk 0:00:51]} 30... Rxb8
{[%clk 0:01:52.1]} 31. Bxb8 {[%clk 0:00:51.9]} 31... Kg6 {[%clk 0:01:52.5]} 32.
Kf2 {[%clk 0:00:52.1]} 32... Kf5 {[%clk 0:01:52.5]} 33. Ke3 {[%clk 0:00:51.6]}
33... f6 {[%clk 0:01:47]} 34. Kd4 {[%clk 0:00:45.5]} 34... Bf1 {[%clk
0:01:47.1]} 35. g3 {[%clk 0:00:44.9]} 35... Kg4 {[%clk 0:01:47.7]} 36. Bd6
{[%clk 0:00:42.9]} 36... Kh3 {[%clk 0:01:45.1]} 37. Bf8 {[%clk 0:00:38.8]} 37...
Kxh2 {[%clk 0:01:39.2]} 38. Bxg7 {[%clk 0:00:38.8]} 38... f5 {[%clk 0:01:38.9]}
39. Ke3 {[%clk 0:00:29]} 39... Kxg3 {[%clk 0:01:38.5]} 40. Bh6 {[%clk
0:00:29.9]} 40... h4 {[%clk 0:01:37.3]} 41. Bf4+ {[%clk 0:00:30.8]} 41... Kg2
{[%clk 0:01:37.5]} 0-1

[Event "*** SCC Grand Prix: Titled Tuesday Blitz"]
[Site "Chess.com"]
[Date "2020.10.13"]
[Round "2"]
[White "rasmussvane"]
[Black "vlad_Sid"]
[Result "1-0"]
[WhiteElo "2906"]
[BlackElo "2580"]
[TimeControl "180+1"]
[EndTime "10:15:47 PDT"]
[Termination "rasmussvane won by resignation"]

1. Nf3 {[%clk 0:03:00.9]} 1... d5 {[%clk 0:02:59.4]} 2. g3 {[%clk 0:03:01.2]}
2... Bg4 {[%clk 0:03:00]} 3. Bg2 {[%clk 0:03:01.6]} 3... Nd7 {[%clk 0:03:00.6]}
4. O-O {[%clk 0:03:02]} 4... Ngf6 {[%clk 0:03:00.6]} 5. h3 {[%clk 0:03:01.7]}
5... Bxf3 {[%clk 0:02:53.9]} 6. Bxf3 {[%clk 0:03:02.6]} 6... c6 {[%clk
0:02:54.6]} 7. d3 {[%clk 0:03:03]} 7... e5 {[%clk 0:02:54]} 8. e4 {[%clk
0:03:03.4]} 8... dxe4 {[%clk 0:02:54.3]} 9. dxe4 {[%clk 0:03:04.3]} 9... Bc5
{[%clk 0:02:54.5]} 10. Nd2 {[%clk 0:03:04.5]} 10... Qc7 {[%clk 0:02:48.6]} 11.
Qe2 {[%clk 0:03:04.6]} 11... O-O {[%clk 0:02:48.1]} 12. a4 {[%clk 0:03:04.3]}
12... a5 {[%clk 0:02:47.9]} 13. Kg2 {[%clk 0:02:59]} 13... Rfe8 {[%clk
0:02:47.4]} 14. Nb3 {[%clk 0:02:59]} 14... Bb6 {[%clk 0:02:46.5]} 15. Rd1 {[%clk
0:02:59.2]} 15... Rad8 {[%clk 0:02:44.7]} 16. Bd2 {[%clk 0:02:57]} 16... Nc5
{[%clk 0:02:29.4]} 17. Qc4 {[%clk 0:02:53.6]} 17... Nxb3 {[%clk 0:02:14.3]} 18.
Qxb3 {[%clk 0:02:54.5]} 18... Bc5 {[%clk 0:02:03.6]} 19. Bc3 {[%clk 0:02:39.6]}
19... Bd4 {[%clk 0:01:54.9]} 20. Be1 {[%clk 0:02:39.7]} 20... Qb6 {[%clk
0:01:44.2]} 21. Qxb6 {[%clk 0:02:39.3]} 21... Bxb6 {[%clk 0:01:45.1]} 22. Rab1
{[%clk 0:02:34]} 22... Rxd1 {[%clk 0:01:37.6]} 23. Rxd1 {[%clk 0:02:34.9]} 23...
Rd8 {[%clk 0:01:38]} 24. Rb1 {[%clk 0:02:17.9]} 24... Rd4 {[%clk 0:01:26.8]} 25.
b3 {[%clk 0:02:15.8]} 25... Bc7 {[%clk 0:00:54.2]} 26. Kf1 {[%clk 0:02:02.7]}
26... Kf8 {[%clk 0:00:26.4]} 27. Bc3 {[%clk 0:01:59.4]} 27... Rd7 {[%clk
0:00:26.7]} 28. Ke2 {[%clk 0:01:59.3]} 28... Ke7 {[%clk 0:00:26.4]} 29. h4
{[%clk 0:01:56.5]} 29... h5 {[%clk 0:00:25.4]} 30. Bg2 {[%clk 0:01:56.3]} 30...
g6 {[%clk 0:00:25.5]} 31. Bh3 {[%clk 0:01:55.8]} 31... Rd8 {[%clk 0:00:25.4]}
32. b4 {[%clk 0:01:56.1]} 32... axb4 {[%clk 0:00:24.6]} 33. Bxb4+ {[%clk
0:01:56.3]} 33... Ke8 {[%clk 0:00:23.4]} 34. Bc5 {[%clk 0:01:56.5]} 34... Rb8
{[%clk 0:00:17.6]} 35. Ba7 {[%clk 0:01:54.8]} 35... Rd8 {[%clk 0:00:11]} 36.
Rxb7 {[%clk 0:01:54.8]} 36... Bd6 {[%clk 0:00:09.5]} 37. f3 {[%clk 0:01:52]}
37... Bb4 {[%clk 0:00:08.3]} 38. Rxb4 {[%clk 0:01:51.3]} 1-0

[Event "*** SCC Grand Prix: Titled Tuesday Blitz"]
[Site "Chess.com"]
[Date "2020.10.13"]
[Round "2"]
[White "Klavdia_Nik"]
[Black "ApacheSVD"]
[Result "0-1"]
[WhiteElo "2131"]
[BlackElo "2397"]
[TimeControl "180+1"]
[EndTime "10:15:49 PDT"]
[Termination "ApacheSVD won on time"]

1. Nf3 {[%clk 0:02:45.3]} 1... c5 {[%clk 0:02:58.5]} 2. c4 {[%clk 0:02:39.4]}
2... Nf6 {[%clk 0:02:51.8]} 3. g3 {[%clk 0:02:22.8]} 3... d5 {[%clk 0:02:48]} 4.
Bg2 {[%clk 0:02:19.9]} 4... d4 {[%clk 0:02:46.2]} 5. O-O {[%clk 0:02:10.3]} 5...
Nc6 {[%clk 0:02:46.6]} 6. d3 {[%clk 0:02:10.9]} 6... e5 {[%clk 0:02:45.2]} 7. b4
{[%clk 0:02:11]} 7... cxb4 {[%clk 0:02:42]} 8. a3 {[%clk 0:01:51.8]} 8... bxa3
{[%clk 0:02:40]} 9. Bxa3 {[%clk 0:01:49.3]} 9... Bxa3 {[%clk 0:02:40.2]} 10.
Nxa3 {[%clk 0:01:49.5]} 10... O-O {[%clk 0:02:40.5]} 11. Nd2 {[%clk 0:01:41.2]}
11... Bd7 {[%clk 0:02:24.7]} 12. Nb5 {[%clk 0:01:30.7]} 12... a6 {[%clk
0:02:22.6]} 13. Nd6 {[%clk 0:01:28.6]} 13... Qc7 {[%clk 0:02:21.8]} 14. N6e4
{[%clk 0:01:11.4]} 14... Nxe4 {[%clk 0:02:11]} 15. Nxe4 {[%clk 0:00:54.4]} 15...
Nb4 {[%clk 0:02:06.2]} 16. Qb3 {[%clk 0:00:45.9]} 16... a5 {[%clk 0:02:04.7]}
17. Rfc1 {[%clk 0:00:34.9]} 17... Bc6 {[%clk 0:02:04.5]} 18. f3 {[%clk
0:00:32.1]} 18... Kh8 {[%clk 0:02:00.5]} 19. Nd2 {[%clk 0:00:22.9]} 19... Qe7
{[%clk 0:01:51.5]} 20. Nb1 {[%clk 0:00:14.6]} 20... f5 {[%clk 0:01:37.1]} 21.
Na3 {[%clk 0:00:15.5]} 21... Qg5 {[%clk 0:01:35.7]} 22. Nc2 {[%clk 0:00:16.2]}
22... Nxc2 {[%clk 0:01:34.1]} 23. Qxc2 {[%clk 0:00:12]} 23... Qe3+ {[%clk
0:01:27.3]} 24. Kh1 {[%clk 0:00:05.3]} 24... e4 {[%clk 0:01:28.2]} 0-1